fUSD/lending_fUSD_20241224
["ID","MTS","AMOUNT","RATE_DAILY","PERIOD"]
[346527222,1735039716012,931.53,9.557e-05,2]
[346527223,1735039716044,442.44,9.557e-05,2]
[346527227,1735039738352,1932.69,9.592e-05,2]
[346527231,1735039788289,977.4,8.219e-05,2]
[346527232,1735039807933,517.63,9.558e-05,2]
[346527241,1735039832423,-387.02289021,9.611e-05,2]
[346527242,1735039832435,-169.01710979,9.611e-05,2]
[346527243,1735039832445,-300.0,9.637e-05,2]
[346527244,1735039832454,-286.00808284,9.644e-05,2]
[346527245,1735039832471,-332.8,9.644e-05,2]
[346527246,1735039832482,-381.19191716,9.644e-05,2]
[346527247,1735039832491,-250.0,9.649e-05,2]
[346527248,1735039832501,-250.0,9.728e-05,2]
[346527249,1735039832510,-70.20787122,9.777e-05,2]
[346527250,1735039832521,-515.34212878,9.777e-05,2]
[346527251,1735039832530,-167.27,9.824e-05,2]
[346527252,1735039832539,-1207.86406111,9.837e-05,2]
[346527253,1735039832616,-344.34865474,9.837e-05,2]
[346527254,1735039832773,-1859.0000001,9.837e-05,2]
[346527255,1735039832784,-3463.10728405,9.837e-05,2]
[346527256,1735039832793,-300.0,9.924e-05,2]
[346527257,1735039832802,-1437.07,9.925e-05,2]
[346527258,1735039832811,-200.73122845,9.925e-05,2]
[346527259,1735039832821,-166.49,9.974e-05,2]
[346527261,1735039832830,-500.0,0.00010007,2]
[346527262,1735039832840,-200.0,0.00010053,2]
[346527263,1735039832849,-1569.87,0.00010156,2]
[346527264,1735039832858,-173.71530552,0.00010159,2]
[346527268,1735039835169,250.0,9.563e-05,2]
[346527269,1735039838303,-473.52469448,0.00010159,2]
[346527270,1735039838312,-166.92,0.00010346,2]
[346527271,1735039838322,-699.487,0.0001045,2]
[346527272,1735039838331,-977.4,0.00010456,2]
[346527273,1735039838341,-150.99,0.00010475,2]
[346527274,1735039838350,-464.68,0.00010475,2]
[346527275,1735039838360,-2577.313,0.0001068,2]
[346527276,1735039838369,-517.63,0.00010753,2]
[346527277,1735039838379,-633.01820294,0.0001078,2]
[346527278,1735039838411,-446.79742223,0.0001078,2]
[346527279,1735039838433,-1620.18437483,0.0001078,2]
[346527280,1735039838442,-1200.0,0.0001078,2]
[346527281,1735039838451,-1000.0,0.0001085,2]
[346527282,1735039838461,-2372.01582389,0.0001088,2]
[346527283,1735039838472,-804.27097611,0.0001088,2]
[346527284,1735039838482,-1995.48117788,0.00010889,2]
[346527285,1735039838493,-3776.53082574,0.00010889,2]
[346527286,1735039838502,-420.0,0.00010916,2]
[346527287,1735039838512,-1277.503,0.00010921,2]
[346527288,1735039838521,-150.0,0.00010959,2]
[346527289,1735039838530,-36236.0,0.00010959,2]
[346527290,1735039838539,-54700.0,0.00010959,2]
[346527291,1735039838548,-356.59721424,0.00010973,2]
[346527292,1735039838557,-305.52711578,0.00010973,2]
[346527294,1735039838566,-500.0,0.00010973,2]
[346527295,1735039838575,-500.0,0.00010973,2]
[346527296,1735039838585,-407.04941238,0.00010973,2]
[346527297,1735039838595,-204.05689553,0.00010973,2]
[346527298,1735039838605,-443176.79405504,0.0001098,2]
[346527300,1735039838614,-465.2928701,0.00010999,2]
[346527301,1735039838623,-315.34314888,0.00010999,2]
[346527302,1735039838632,-500.0,0.00010999,2]
[346527303,1735039838641,-500.0,0.00010999,2]
[346527304,1735039838650,-500.0,0.00010999,2]
[346527306,1735039838659,-500.0,0.00010999,2]
[346527308,1735039838668,-153.3702969,0.00010999,2]
[346527310,1735039838677,-486.28527724,0.00010999,2]
[346527312,1735039838686,-500.0,0.00010999,2]
[346527314,1735039838695,-500.0,0.00010999,2]
[346527316,1735039838705,-620.65987668,0.00010999,2]
[346527318,1735039838714,-239.81139115,0.00010999,2]
[346527320,1735039838723,-500.0,0.00010999,2]
[346527322,1735039838732,-500.0,0.00010999,2]
[346527323,1735039838741,-500.0,0.00010999,2]
[346527325,1735039838750,-500.0,0.00010999,2]
[346527327,1735039838759,-500.0,0.00010999,2]
[346527328,1735039838768,-500.0,0.00010999,2]
[346527329,1735039838777,-524.0,0.00010999,2]
[346527330,1735039838787,-803850.94997391,0.00011,2]
[346527331,1735039838795,-3931.6684996,0.00011,2]
[346527332,1735039838805,-6133638.50999953,0.00011,2]
[346527333,1735039838814,-32667988.1443456,0.00011,2]
[346527334,1735039838826,-3906.47492057,0.00011,2]
[346527335,1735039838847,-24190.70414171,0.00011,2]
[346527336,1735039838858,-10544.49279954,0.00011,2]
[346527337,1735039838869,-28584.90912269,0.00011,2]
[346527338,1735039838901,-7887.0,0.00011,2]
[346527339,1735039840320,-16017.56347792,0.00011,2]
[346527340,1735039840381,-5931.15431095,0.00011,2]
[346527341,1735039840596,-85591.90891447,0.00011,2]
[346527342,1735039840622,-272.43669337,0.00011,2]
[346527343,1735039840667,-571.4487318,0.00011,2]
[346527344,1735039840678,-779.29770215,0.00011,2]
[346527348,1735039843485,-95432.35486429,0.00011,2]
[346527349,1735039843496,-136401.39825497,0.00011,2]
[346527350,1735039843534,-16.74676142,0.00011,2]
[346527358,1735039846278,-263.33,0.00010627,2]
[346527359,1735039846288,-856.74727721,0.00011,2]
[346527360,1735039846440,-1442260.21051032,0.00011,2]
[346527361,1735039846480,-3814.79493391,0.00011,2]
[346527362,1735039846528,-2118.9660568,0.00011,2]
[346527363,1735039846539,-3253.2053238,0.00011,2]
[346527371,1735040724799,879.66,8.219e-05,2]
[346527372,1735040829501,-1455.42,9.715e-05,2]
[346527373,1735040829524,-250.0,9.739e-05,2]
[346527374,1735040829547,-300.0,9.762e-05,2]
[346527375,1735040829571,-9518.58,9.763e-05,2]
[346527376,1735040843752,-10644.34,9.763e-05,2]
[346527377,1735040854897,-3737.08,9.763e-05,2]
[346527378,1735040854921,-267.27630766,9.763e-05,2]
[346527379,1735040856667,771.93,9.684e-05,2]
[346527380,1735040934402,1000.0,9.678e-05,2]
[346527381,1735040940089,250.0,9.686e-05,2]
[346527382,1735040948445,-1500.0,9.803e-05,2]
[346527383,1735040948467,-29.28804178,9.835e-05,2]
[346527384,1735041007705,250.0,9.703e-05,2]
[346527396,1735041031786,-137.01195822,9.835e-05,2]
[346527397,1735041031797,-200.0,9.938e-05,2]
[346527398,1735041031806,-150.0,9.945e-05,2]
[346527399,1735041031818,-1079.5649327,9.986e-05,2]
[346527400,1735041031834,-471.9750673,9.986e-05,2]
[346527401,1735041031845,-18769.97555327,0.0001,2]
[346527402,1735041031855,-150.13348761,0.0001,2]
[346527403,1735041031864,-267.27630765,0.00010055,2]
[346527404,1735041031873,-168.14,0.00010064,2]
[346527405,1735041031882,-283.76,0.00010137,2]
[346527406,1735041031891,-436.42,0.00010445,2]
[346527407,1735041031901,-436.42,0.00010445,2]
[346527408,1735041031910,-436.42,0.00010445,2]
[346527409,1735041031919,-301.21,0.00010445,2]
[346527410,1735041031929,-267.27630765,0.00010446,2]
[346527411,1735041031938,-670.551,0.0001045,2]
[346527412,1735041031947,-879.66,0.00010456,2]
[346527413,1735041031956,-152.03,0.00010532,2]
[346527414,1735041031966,-152.03,0.00010536,2]
[346527415,1735041031975,-152.03,0.00010541,2]
[346527416,1735041031984,-152.03,0.00010546,2]
[346527417,1735041031994,-152.03,0.00010551,2]
[346527418,1735041032003,-152.03,0.00010556,2]
[346527419,1735041032013,-138.56215241,0.0001056,2]
[346527420,1735041032025,-13.46784759,0.0001056,2]
[346527421,1735041032035,-152.03,0.00010565,2]
[346527422,1735041032046,-39158.0,0.00010566,2]
[346527423,1735041032055,-152.03,0.0001057,2]
[346527424,1735041032064,-152.03,0.00010575,2]
[346527425,1735041032073,-152.03,0.0001058,2]
[346527426,1735041032083,-152.03,0.00010584,2]
[346527427,1735041032092,-365.19,0.00010778,2]
[346527429,1735041032101,-2500.0,0.0001078,2]
[346527431,1735041032110,-1100.0,0.0001078,2]
[346527432,1735041032120,-329.2517,0.000108,2]
[346527433,1735041032129,-1000.0,0.00010888,2]
[346527434,1735041032138,-2638.15236,0.0001089,2]
[346527435,1735041032147,-771.93,0.00010895,2]
[346527436,1735041032156,-122063.85809264,0.000109,2]
[346527437,1735041032169,-4198.70911555,0.000109,2]
[346527438,1735041032183,-31646.57820956,0.000109,2]
[346527439,1735041032199,-7437.92811759,0.000109,2]
[346527444,1735041037452,-129592.92646466,0.000109,2]
[346527445,1735041037463,-155.17745676,0.000109,2]
[346527446,1735041037472,-1244.935,0.00010921,2]
[346527447,1735041037481,-500.0,0.00010973,2]
[346527448,1735041037490,-500.0,0.00010973,2]
[346527449,1735041037500,-400.0,0.00010986,2]
[346527450,1735041037510,-16905.53294853,0.00010999,2]
[346527451,1735041037518,-1000.0,0.00010999,2]
[346527452,1735041037529,-500.0,0.00010999,2]
[346527453,1735041037538,-500.0,0.00010999,2]
[346527454,1735041037547,-500.0,0.00010999,2]
[346527455,1735041037556,-500.0,0.00010999,2]
[346527456,1735041037566,-500.0,0.00010999,2]
[346527457,1735041037575,-200.0,0.00010999,2]
[346527458,1735041037585,-500.0,0.00010999,2]
[346527459,1735041037594,-239.81139115,0.00010999,2]
[346527460,1735041037603,-500.0,0.00010999,2]
[346527461,1735041037612,-620.65987668,0.00010999,2]
[346527462,1735041037621,-500.0,0.00010999,2]
[346527463,1735041037631,-500.0,0.00010999,2]
[346527464,1735041037640,-486.28527724,0.00010999,2]
[346527465,1735041037649,-153.3702969,0.00010999,2]
[346527466,1735041037658,-465.2928701,0.00010999,2]
[346527467,1735041037667,-315.34314888,0.00010999,2]
[346527468,1735041037677,-500.0,0.00010999,2]
[346527469,1735041037686,-500.0,0.00010999,2]
[346527470,1735041037695,-803850.94997391,0.00011,2]
[346527471,1735041037704,-3931.6684996,0.00011,2]
[346527472,1735041037714,-6689962.21727895,0.00011,2]
[346527473,1735041037723,-300.0,0.00011,2]
[346527474,1735041037732,-31999489.25688484,0.00011,2]
[346527475,1735041037744,-611.96207322,0.00011,2]
[346527476,1735041037755,-28817.57440624,0.00011,2]
[346527477,1735041037766,-10811.00304557,0.00011,2]
[346527479,1735041037785,-5216.32132093,0.00011,2]
[346527481,1735041037796,-31597.71380082,0.00011,2]
[346527484,1735041037817,-1429.94766732,0.00011,2]
[346527489,1735041037861,-8013.03588428,0.00011,2]
[346527509,1735041042737,-411.47890569,0.00010973,2]
[346527514,1735041043001,-88.52109431,0.00010973,2]
[346527516,1735041043010,-7967.07890569,0.00011,2]
[346527527,1735041045835,-3121.63675644,0.00011,2]
[346527531,1735041616760,-219.17,0.00010137,2]
[346527532,1735041616784,-23900.0,0.00010184,2]
[346527533,1735041616806,-250.0,0.00010197,2]
[346527534,1735041617067,-981.97,0.00010201,2]
[346527535,1735041617100,-164.91,0.00010212,2]
[346527536,1735041617123,-200.0,0.00010227,2]
[346527537,1735041617146,-1500.0,0.00010253,2]
[346527538,1735041617170,-661.041,0.0001045,2]
[346527539,1735041617192,-1244.09,0.0001063,2]
[346527540,1735041617215,-1978.74,0.00010651,2]
[346527541,1735041617238,-1100.0,0.0001078,2]
[346527542,1735041617261,-2500.0,0.0001078,2]
[346527543,1735041617286,-2547.2494,0.000108,2]
[346527544,1735041617307,-49498.96140694,0.000108,2]
[346527545,1735041617329,-186.2941,0.000108,2]
[346527546,1735041617350,-5000.0,0.000109,2]
[346527547,1735041617371,-3926.444346,0.000109,2]
[346527548,1735041617393,-94241.8413,0.000109,2]
[346527549,1735041617414,-1000.0,0.000109,2]
[346527550,1735041617435,-2500.0,0.000109,2]
[346527551,1735041617456,-185.347,0.00010909,2]
[346527552,1735041617478,-1706.068,0.00010909,2]
[346527553,1735041617500,-150.0,0.00010959,2]
[346527554,1735041617523,-160.00510644,0.00010973,2]
[346527555,1735041617546,-500.0,0.00010973,2]
[346527556,1735041617568,-482.36428318,0.00010973,2]
[346527557,1735041617592,-400.0,0.00010986,2]
[346527558,1735041617616,-451.91148984,0.00010999,2]
[346527559,1735041617641,-620.0,0.00011,2]
[346527560,1735041617668,-5179151.32230991,0.00011,2]
[346527561,1735041617690,-2306.0,0.00011,2]
[346527562,1735041617719,-2692359.13525051,0.00011,2]
[346527563,1735041617744,-4356432.1201644,0.00011,2]
[346527564,1735041617767,-2698.4603,0.00011,2]
[346527565,1735041617791,-1000.0,0.000111,2]
[346527566,1735041617814,-1000.0,0.000112,2]
[346527567,1735041617836,-552.3,0.00011241,2]
[346527568,1735041617859,-552.3,0.00011244,2]
[346527569,1735041617882,-552.3,0.00011247,2]
[346527570,1735041617907,-552.3,0.0001125,2]
[346527571,1735041617934,-552.3,0.00011253,2]
[346527572,1735041617957,-552.3,0.00011255,2]
[346527573,1735041617979,-552.3,0.00011258,2]
[346527574,1735041617999,-1947.6887,0.0001126,2]
[346527575,1735041618023,-552.3,0.00011261,2]
[346527576,1735041618046,-552.3,0.00011264,2]
[346527577,1735041618068,-552.3,0.00011267,2]
[346527578,1735041618092,-552.3,0.0001127,2]
[346527579,1735041618115,-552.3,0.00011273,2]
[346527580,1735041618139,-552.3,0.00011276,2]
[346527581,1735041618162,-552.3,0.00011279,2]
[346527582,1735041618186,-552.3,0.00011282,2]
[346527583,1735041618210,-552.3,0.00011285,2]
[346527584,1735041618234,-552.3,0.00011288,2]
[346527585,1735041618258,-552.3,0.00011291,2]
[346527586,1735041618282,-552.3,0.00011294,2]
[346527587,1735041618305,-552.3,0.00011297,2]
[346527588,1735041618328,-422.44394922,0.00011502,2]
[346527589,1735041618351,-2751.0,0.00011507,2]
[346527590,1735041618372,-500.0,0.00011521,2]
[346527591,1735041618394,-30000.0,0.00011679,2]
[346527592,1735041618416,-150.0,0.00011798,2]
[346527593,1735041618438,-633.0,0.00011798,2]
[346527594,1735041618462,-565.0,0.00011798,2]
[346527595,1735041618484,-1899.0,0.00011798,2]
[346527596,1735041618508,-818.0,0.00011798,2]
[346527597,1735041618535,-3771.0,0.00011798,2]
[346527598,1735041618559,-923.0,0.00011798,2]
[346527599,1735041618582,-1256.0,0.00011798,2]
[346527600,1735041618605,-536.0,0.00011798,2]
[346527601,1735041618628,-3683.0,0.00011798,2]
[346527602,1735041618650,-150.0,0.00011798,2]
[346527603,1735041618672,-150.0,0.00011798,2]
[346527604,1735041618694,-276.367,0.00011798,2]
[346527605,1735041618724,-150.265,0.00011798,2]
[346527606,1735041618747,-150.25,0.00011798,2]
[346527607,1735041618776,-1101.0,0.00011798,2]
[346527608,1735041618799,-252.779,0.00011798,2]
[346527609,1735041618822,-500.0,0.00011876,2]
[346527610,1735041618844,-976.98,0.000119,2]
[346527611,1735041618868,-517.63,0.00011948,2]
[346527612,1735041618890,-158.30392921,0.00012,3]
[346527613,1735041618913,-166.92,0.00012053,2]
[346527614,1735041618936,-20960.57,0.00012055,2]
[346527615,1735041618958,-1000.0,0.00012098,2]
[346527616,1735041618981,-771.93,0.00012105,2]
[346527617,1735041619003,-239.12,0.00012126,2]
[346527618,1735041619026,-1100.0,0.0001215,2]
[346527619,1735041619049,-2500.0,0.0001215,2]
[346527620,1735041619075,-500.0,0.00012211,2]
[346527621,1735041619097,-53897.87,0.00012329,2]
[346527622,1735041619118,-190.05660322,0.00012398,13]
[346527623,1735041619140,-104581.54002936,0.00012399,2]
[346527624,1735041619162,-31447.57547512,0.00012399,2]
[346527625,1735041619184,-31447.57547504,0.00012399,2]
[346527626,1735041619210,-31447.57547504,0.00012399,2]
[346527627,1735041619234,-31447.57547504,0.00012399,2]
[346527628,1735041619256,-31447.57547504,0.00012399,2]
[346527629,1735041619280,-31447.57547504,0.00012399,2]
[346527630,1735041619303,-31447.57547504,0.00012399,2]
[346527631,1735041619326,-31447.57547504,0.00012399,2]
[346527632,1735041619349,-31447.57547504,0.00012399,2]
[346527633,1735041619372,-31447.57547504,0.00012399,2]
[346527634,1735041619393,-53336.14,0.00012603,2]
[346527635,1735041619416,-153.0,0.00012666,2]
[346527636,1735041619439,-153.0,0.00012666,2]
[346527637,1735041619461,-153.0,0.00012666,2]
[346527638,1735041619485,-153.0,0.00012666,2]
[346527639,1735041619507,-153.0,0.00012668,2]
[346527640,1735041619530,-153.0,0.00012668,2]
[346527641,1735041619553,-153.0,0.00012668,2]
[346527642,1735041619575,-153.0,0.00012668,2]
[346527643,1735041619599,-153.0,0.00012668,2]
[346527644,1735041619624,-153.0,0.00012668,2]
[346527645,1735041619648,-153.0,0.00012677,2]
[346527646,1735041619673,-153.0,0.00012677,2]
[346527647,1735041619696,-153.0,0.00012677,2]
[346527648,1735041619723,-153.0,0.00012677,2]
[346527649,1735041619747,-153.0,0.00012679,2]
[346527650,1735041619770,-153.0,0.00012679,2]
[346527651,1735041619796,-153.0,0.00012679,2]
[346527652,1735041619819,-153.0,0.00012679,2]
[346527653,1735041619841,-153.0,0.00012679,2]
[346527654,1735041619864,-153.0,0.00012679,2]
[346527655,1735041619887,-153.0,0.00012688,2]
[346527656,1735041619911,-153.0,0.00012688,2]
[346527657,1735041619933,-153.0,0.00012688,2]
[346527658,1735041619955,-153.0,0.00012688,2]
[346527659,1735041619978,-153.0,0.0001269,2]
[346527660,1735041620000,-153.0,0.0001269,2]
[346527661,1735041620022,-153.0,0.0001269,2]
[346527662,1735041620045,-153.0,0.0001269,2]
[346527663,1735041620068,-153.0,0.0001269,2]
[346527664,1735041620090,-153.0,0.0001269,2]
[346527665,1735041620111,-153.0,0.000127,2]
[346527666,1735041620133,-153.0,0.000127,2]
[346527667,1735041620155,-153.0,0.000127,2]
[346527668,1735041620176,-153.0,0.000127,2]
[346527669,1735041620198,-153.0,0.00012701,2]
[346527670,1735041620220,-153.0,0.00012701,2]
[346527671,1735041620241,-153.0,0.00012701,2]
[346527672,1735041620264,-153.0,0.00012701,2]
[346527673,1735041620287,-153.0,0.00012701,2]
[346527674,1735041620309,-153.0,0.00012701,2]
[346527675,1735041620331,-153.0,0.00012711,2]
[346527676,1735041620352,-153.0,0.00012711,2]
[346527677,1735041620374,-153.0,0.00012711,2]
[346527678,1735041620396,-153.0,0.00012711,2]
[346527679,1735041620417,-153.0,0.00012712,2]
[346527680,1735041620439,-153.0,0.00012712,2]
[346527681,1735041620461,-153.0,0.00012712,2]
[346527682,1735041620483,-153.0,0.00012712,2]
[346527683,1735041620505,-153.0,0.00012712,2]
[346527684,1735041620528,-153.0,0.00012712,2]
[346527685,1735041620806,-153.0,0.00012722,2]
[346527686,1735041620830,-153.0,0.00012722,2]
[346527687,1735041620852,-153.0,0.00012722,2]
[346527688,1735041620874,-153.0,0.00012722,2]
[346527689,1735041620898,-153.0,0.00012724,2]
[346527690,1735041620920,-153.0,0.00012724,2]
[346527691,1735041620942,-153.0,0.00012724,2]
[346527692,1735041620964,-153.0,0.00012724,2]
[346527693,1735041620986,-17044.0,0.000128,2]
[346527694,1735041621010,-1145.55277575,0.00012869,2]
[346527695,1735041621033,-1145.55277575,0.00012869,2]
[346527696,1735041621056,-299.99,0.00012893,2]
[346527697,1735041621077,-150.99,0.00012893,2]
[346527698,1735041621107,-723465.85497651,0.00013,2]
[346527699,1735041621134,-3538.50164964,0.00013,2]
[346527700,1735041621161,-1204131.77669701,0.00013,2]
[346527701,1735041621187,-10548917.00349702,0.00013,2]
[346527702,1735041621211,-1128078.72320961,0.00013,2]
[346527705,1735041880933,26017.74818195,0.0002,120]
[346527707,1735042203323,324.0,0.00019,30]
[346527708,1735042203395,324.0,0.00019,30]
[346527709,1735042203533,324.0,0.00019,30]
[346527710,1735042203858,324.0,0.00019,30]
[346527711,1735042204191,324.0,0.00019,30]
[346527712,1735042204518,324.0,0.00019,30]
[346527713,1735042204800,324.0,0.00019,30]
[346527714,1735042205379,324.0,0.00019,30]
[346527715,1735042205465,324.0,0.00019,30]
[346527716,1735042205763,324.0,0.00019,30]
[346527717,1735042206068,324.0,0.00019,30]
[346527718,1735042206913,324.0,0.00019,30]
[346527719,1735042207273,324.0,0.00019,30]
[346527745,1735042231606,-907.56,9.873e-05,2]
[346527747,1735042231615,-2215.017023,0.00010726,2]
[346527749,1735042231625,-1100.0,0.0001078,2]
[346527751,1735042231634,-500.0,0.0001078,2]
[346527752,1735042231643,-700.4705,0.000108,2]
[346527753,1735042231658,-500.0,0.00010999,2]
[346527754,1735042231668,-3366.52,0.00011153,2]
[346527755,1735042231678,-164.58,0.00011173,2]
[346527756,1735042231688,-200.0,0.00011195,2]
[346527757,1735042231698,-2093.09,0.00011221,2]
[346527758,1735042231708,-300.0,0.00011286,2]
[346527759,1735042231718,-232.38,0.00011287,2]
[346527760,1735042231727,-1000.0,0.00011301,2]
[346527761,1735042231737,-30000.0,0.00011302,2]
[346527762,1735042231747,-417.47,0.00011315,2]
[346527763,1735042231756,-2751.0,0.00011507,2]
[346527764,1735042231766,-1000.0,0.00011518,2]
[346527765,1735042231776,-1254.19,0.00011579,2]
[346527766,1735042231785,-250.0,0.00011704,2]
[346527767,1735042231795,-1265.0,0.00011738,2]
[346527768,1735042231804,-2011.0,0.00011738,2]
[346527769,1735042231814,-150.0,0.00011738,2]
[346527770,1735042231823,-565.0,0.00011738,2]
[346527771,1735042231833,-633.0,0.00011738,2]
[346527772,1735042231843,-1899.0,0.00011738,2]
[346527773,1735042231854,-625.099,0.00011738,2]
[346527774,1735042231869,-818.0,0.00011738,2]
[346527775,1735042231879,-3771.0,0.00011738,2]
[346527776,1735042231889,-1256.0,0.00011738,2]
[346527777,1735042231898,-536.0,0.00011738,2]
[346527778,1735042231909,-3683.0,0.00011738,2]
[346527779,1735042231919,-1101.0,0.00011738,2]
[346527780,1735042231929,-165.927,0.00011738,2]
[346527781,1735042231938,-288.046,0.00011738,2]
[346527782,1735042231948,-9594.0,0.00011738,2]
[346527783,1735042231958,-3888.0,0.00011738,2]
[346527784,1735042231967,-2300.0,0.00011876,2]
[346527785,1735042231977,-167.32,0.00011958,2]
[346527786,1735042231987,-200.0,0.000121,4]
[346527787,1735042231996,-2900.0,0.000121,4]
[346527788,1735042232006,-907.56,0.00012137,2]
[346527789,1735042232016,-1100.0,0.0001215,2]
[346527790,1735042232026,-500.0,0.000122,4]
[346527791,1735042232035,-5900.0,0.000122,4]
[346527792,1735042232044,-221.7158,0.000122,2]
[346527793,1735042232054,-800.0,0.000123,4]
[346527794,1735042232064,-1815.97402073,0.000123,4]
[346527795,1735042232076,-1827.20936755,0.000123,4]
[346527796,1735042232088,-412.40818989,0.000123,4]
[346527797,1735042232119,-4744.40842183,0.000123,4]
[346527798,1735042232129,-129.49476526,0.00012329,2]
[346527799,1735042232144,-5870.50523474,0.00012329,2]
[346527800,1735042232155,-276.6,0.00012329,2]
[346527801,1735042232165,-493.07,0.00012333,2]
[346527802,1735042232175,-9081.34836526,0.00012348,2]
[346527804,1735042232195,-25.69993474,0.00012348,2]
[346527805,1735042232205,-784.514,0.0001235,2]
[346527806,1735042232215,-5212.5196,0.00012384,2]
[346527807,1735042232226,-420.0,0.00012399,2]
[346527808,1735042232235,-1100.0,0.000124,4]
[346527809,1735042232245,-11800.0,0.000124,4]
[346527810,1735042232255,-193.09384646,0.00012405,2]
[346527811,1735042232264,-153.0,0.00012425,2]
[346527812,1735042232274,-153.0,0.00012425,2]
[346527813,1735042232284,-153.0,0.00012426,2]
[346527814,1735042232293,-153.0,0.00012426,2]
[346527815,1735042232303,-153.0,0.00012426,2]
[346527816,1735042232313,-153.0,0.00012426,2]
[346527817,1735042232322,-153.0,0.00012436,2]
[346527818,1735042232331,-153.0,0.00012438,2]
[346527819,1735042232340,-153.0,0.00012444,2]
[346527820,1735042232349,-153.0,0.00012444,2]
[346527821,1735042232359,-153.0,0.00012444,2]
[346527822,1735042232368,-153.0,0.00012444,2]
[346527823,1735042232378,-153.0,0.00012444,2]
[346527824,1735042232387,-153.0,0.00012444,2]
[346527825,1735042232396,-153.0,0.00012444,2]
[346527826,1735042232406,-153.0,0.00012444,2]
[346527827,1735042232417,-153.0,0.00012444,2]
[346527828,1735042232426,-153.0,0.00012444,2]
[346527829,1735042232436,-153.0,0.00012444,2]
[346527830,1735042232445,-153.0,0.00012444,2]
[346527831,1735042232454,-153.0,0.00012444,2]
[346527832,1735042232464,-153.0,0.00012444,2]
[346527833,1735042232473,-153.0,0.00012444,2]
[346527834,1735042232483,-153.0,0.00012444,2]
[346527835,1735042232492,-153.0,0.00012444,2]
[346527836,1735042232502,-153.0,0.00012444,2]
[346527837,1735042232511,-153.0,0.00012444,2]
[346527838,1735042232521,-153.0,0.00012444,2]
[346527839,1735042232531,-153.0,0.00012444,2]
[346527840,1735042232540,-153.0,0.00012444,2]
[346527841,1735042232550,-153.0,0.00012444,2]
[346527842,1735042232560,-153.0,0.00012444,2]
[346527843,1735042232569,-153.0,0.00012444,2]
[346527844,1735042232579,-153.0,0.00012444,2]
[346527845,1735042232587,-153.0,0.00012444,2]
[346527846,1735042232598,-153.0,0.00012444,2]
[346527847,1735042232607,-153.0,0.00012444,2]
[346527848,1735042232616,-153.0,0.00012444,2]
[346527849,1735042232626,-153.0,0.00012444,2]
[346527850,1735042232635,-153.0,0.00012444,2]
[346527852,1735042232645,-153.0,0.00012444,2]
[346527853,1735042232654,-153.0,0.00012444,2]
[346527855,1735042232663,-153.0,0.00012444,2]
[346527857,1735042232672,-153.0,0.00012444,2]
[346527859,1735042232682,-153.0,0.00012444,2]
[346527860,1735042232692,-153.0,0.00012444,2]
[346527862,1735042232701,-153.0,0.00012444,2]
[346527863,1735042232711,-153.0,0.00012444,2]
[346527864,1735042232720,-153.0,0.00012444,2]
[346527865,1735042232729,-153.0,0.00012444,2]
[346527866,1735042232739,-153.0,0.00012444,2]
[346527867,1735042232748,-153.0,0.00012444,2]
[346527868,1735042232757,-153.0,0.00012444,2]